bitfinex-derivatives/quotes_ETHF0:USTF0_20250327
["timestamp","ask_amount","ask_price","bid_price","bid_amount"]
[1743081615128,2.33868,2014.3,2014.2,0.00744472]
[1743081615632,5.63268,2014.3,2014.2,0.00744472]
[1743081617739,5.63368,2014.3,2014.2,0.00744472]
[1743081622239,5.63368,2014.3,2014.2,1.38184472]
[1743081622645,2.33868,2014.3,2014.2,1.38184472]
[1743081622943,5.63168,2014.3,2014.2,1.38184472]
[1743081623143,2.33868,2014.3,2014.2,1.38184472]
[1743081623843,3.9043,2014.6,2014.4,0.9928]
[1743081624035,5.57203,2014.6,2014.5,1.3744]
[1743081626646,3.2078,2014.9,2014.5,1.3744]
[1743081626844,0.99268,2014.7,2014.6,1.7085]
[1743081627345,2.39878,2014.7,2014.6,1.7085]
[1743081627954,0.99268,2014.7,2014.6,1.7085]
[1743081630356,2.39877,2014.8,2014.7,0.99268]
[1743081630548,0.99261,2014.9,2014.8,0.99258]
[1743081630756,2.38631,2014.9,2014.8,0.99258]
[1743081631253,2.38632,2014.9,2014.8,0.99263]
[1743081631556,1.3937,2014.9,2014.7,3.874]
[1743081631757,2.38633,2014.9,2014.8,0.99263]
[1743081631960,0.99263,2014.8,2014.7,4.86665]
[1743081632157,2.41813,2014.8,2014.7,3.874]
[1743081633161,2.41813,2014.8,2014.7,0.6662]
[1743081633960,0.6572,2015.2,2014.9,0.99255]
[1743081634164,0.6572,2015.2,2014.7,3.874]
[1743081634165,0.99247,2015.2,2015.1,0.99247]
[1743081634355,0.99246,2015.2,2015.1,0.99247]
[1743081634758,0.99246,2015.2,2015.1,1.67277]
[1743081635258,2.42537472,2015.3,2015.2,0.99243]
[1743081635561,0.99243,2015.2,2015.1,1.67275]
[1743081635756,1.43294472,2015.3,2015.2,0.99243]
[1743081635757,2.42535472,2015.3,2015.2,0.99243]
[1743081636163,0.99985472,2015.3,2015.2,0.99243]
[1743081636657,0.00744472,2015.3,2015.2,0.99243]
[1743081636860,0.99243,2015.2,2015.1,1.67276]
[1743081637156,0.00744472,2015.3,2015.2,0.99243]
[1743081638562,0.99982472,2015.3,2015.2,0.99243]
[1743081638864,0.00744472,2015.3,2015.1,0.6803]
[1743081639051,0.99986472,2015.3,2015.2,0.99243]
[1743081639457,0.99243,2015.2,2015.1,1.67273]
[1743081639657,0.00744472,2015.3,2015.2,0.99243]
[1743081640059,0.99221,2015.7,2015.6,0.99224]
[1743081640259,0.99224,2015.6,2015.5,4.20004]
[1743081642359,0.99223,2015.7,2015.6,0.99221]
[1743081642657,2.40903,2015.7,2015.6,0.99221]
[1743081643053,2.40899,2015.7,2015.6,0.99224]
[1743081643257,1.4168,2015.7,2015.6,1.69514]
[1743081643464,0.99219,2015.7,2015.6,1.69514]
[1743081644462,2.33851472,2015.8,2015.7,0.99219]
[1743081645066,2.33851472,2015.8,2015.7,1.65749]
[1743081645366,1.34634472,2015.8,2015.7,1.65749]
[1743081645567,0.00744472,2015.8,2015.7,1.65749]
[1743081646258,0.99958472,2015.8,2015.7,1.65749]
[1743081646467,0.00744472,2015.8,2015.7,1.65749]
[1743081647166,0.00744472,2015.8,2015.7,3.05849]
[1743081651375,0.99958472,2015.8,2015.7,3.05849]
[1743081651568,2.38498472,2015.8,2015.7,3.05849]
[1743081653572,1.39284472,2015.8,2015.7,3.05849]
[1743081653969,2.38498472,2015.8,2015.7,3.05849]
[1743081654173,1.39284472,2015.8,2015.7,3.05849]
[1743081659071,2.38498472,2015.8,2015.7,3.05849]
[1743081659879,1.39284472,2015.8,2015.7,3.05849]
[1743081661876,2.38498472,2015.8,2015.7,3.05849]
[1743081662480,1.39284472,2015.8,2015.7,3.05849]
[1743081663683,0.00744472,2015.8,2015.7,3.05849]
[1743081664084,0.99195,2016.2,2015.7,7.04673]
[1743081664385,2.39605,2016.2,2016.1,4.19979]
[1743081664781,2.39605,2016.2,2016.1,44.99979]
[1743081665083,0.99204,2016.0,2015.9,0.99207]
[1743081665780,2.95824,2016.0,2015.9,0.99207]
[1743081666373,2.95824,2016.0,2015.9,2.42017]
[1743081667692,2.29484,2016.0,2015.9,2.42017]
[1743081668088,1.3028,2016.0,2015.9,2.42017]
[1743081668688,2.29484,2016.0,2015.9,2.42017]
[1743081669689,2.29484,2016.0,2015.9,1.4281]
[1743081672396,0.99228,2015.5,2015.4,3.2078]
[1743081672593,0.99233,2015.4,2015.3,0.00744472]
[1743081672790,6.91433,2015.4,2015.3,0.00744472]
[1743081673195,7.916961,2015.4,2015.3,0.00744472]
[1743081673595,6.91433,2015.4,2015.3,0.00744472]
[1743081674097,5.922,2015.4,2015.0,44.0078]
[1743081674291,4.20028,2015.1,2015.0,40.8]
[1743081675993,0.99258,2014.9,2014.8,0.00744472]
[1743081676502,0.99258,2014.9,2014.8,40.80744472]
[1743081676694,2.34228,2014.9,2014.8,40.80744472]
[1743081677200,2.34228,2014.9,2014.8,0.00744472]
[1743081677502,3.00228,2014.9,2014.8,0.00744472]
[1743081680704,3.00228,2014.9,2014.8,40.80744472]
[1743081681908,6.97267,2014.9,2014.4,0.6766]
[1743081682117,0.99288,2014.3,2014.2,1.3996]
[1743081682411,0.99317,2013.7,2013.6,2.0932]
[1743081683111,0.99317,2013.7,2013.6,42.8932]
[1743081683412,3.2078,2013.7,2013.4,0.00744472]
[1743081683607,0.99327,2013.5,2013.4,1.30504472]
[1743081683809,0.99327,2013.5,2013.4,42.10504472]
[1743081687511,4.28127,2013.5,2013.4,40.80744472]
[1743081687718,4.28127,2013.5,2013.4,0.00744472]
[1743081688013,0.99342,2013.2,2013.1,1.3389]
[1743081688508,0.99347,2013.1,2013.0,44.6587]
[1743081688906,0.99347,2013.1,2013.0,3.8587]
[1743081689203,0.99347,2013.1,2013.0,5.1976]
[1743081689405,0.99347,2013.1,2013.0,46.99112]
[1743081689606,0.99347,2013.1,2013.0,45.9976]
[1743081689807,2.40845,2013.2,2013.0,46.99109]
[1743081690316,2.40845,2013.2,2013.1,0.99347]
[1743081690519,0.99339,2013.3,2013.2,0.99342]
[1743081690819,0.99342,2013.2,2013.1,0.99343]
[1743081691014,0.9934,2013.3,2013.1,0.99343]
[1743081691316,0.9934,2013.3,2013.2,0.7033]
[1743081692114,0.9934,2013.3,2013.2,1.69672]
[1743081692514,5.54215,2013.4,2013.2,0.7033]
[1743081692715,4.5488,2013.4,2013.2,1.69671]
[1743081692918,3.288,2013.5,2013.3,0.99337]
[1743081693213,2.39333,2013.6,2013.2,0.7033]
[1743081693512,3.2078,2013.7,2013.6,0.99322]
[1743081694319,4.20097,2013.7,2013.6,0.99322]
[1743081694917,0.99319,2013.7,2013.6,0.9932]
[1743081695215,0.00744472,2013.9,2013.7,0.99316]
[1743081695415,0.99315,2013.8,2013.7,0.99316]
[1743081695609,0.00744472,2013.9,2013.7,0.99315]
[1743081695812,1.00055472,2013.9,2013.8,0.6689]
[1743081696216,2.37785472,2013.9,2013.8,0.6689]
[1743081700020,0.99312,2013.8,2013.7,0.7146]
[1743081700320,2.32412,2013.8,2013.7,0.7146]
[1743081700711,0.99317,2013.7,2013.6,3.2078]
[1743081700911,2.32417,2013.7,2013.6,3.2078]
[1743081701716,7.8188,2013.7,2013.4,0.666]
[1743081701922,2.48311,2013.6,2013.3,0.99337]
[1743081702123,0.99332,2013.4,2013.3,0.99337]
[1743081702323,1.3903,2013.5,2013.2,3.8542]
[1743081702525,0.99334,2013.4,2013.3,0.99332]
[1743081702724,2.3836,2013.5,2013.4,0.99332]
[1743081702925,0.99325,2013.6,2013.5,0.99323]
[1743081703526,0.99337,2013.4,2013.3,0.99335]
[1743081704128,0.99337,2013.3,2013.2,0.6464]
[1743081704322,2.38367,2013.3,2013.2,0.6464]
[1743081707217,2.38367,2013.3,2013.2,2.0472]
[1743081712130,0.99347,2013.1,2013.0,40.8]
[1743081712332,0.99347,2013.1,2013.0,1.4179]
[1743081712835,0.99347,2013.1,2013.0,42.2179]
[1743081713129,0.99347,2013.1,2013.0,1.4179]
[1743081713333,0.99352,2013.0,2012.9,3.2078]
[1743081713533,0.99352,2013.0,2012.2,2.48469]
[1743081713534,0.99396,2012.1,2012.0,3.2078]
[1743081713827,2.48515,2012.0,2011.4,3.2078]
[1743081714135,0.99455,2010.9,2010.8,11.54530174]
[1743081714429,3.2078,2011.1,2010.6,52.34530174]
[1743081714630,0.99455,2011.0,2010.6,52.34530174]
[1743081714833,4.61664472,2011.1,2010.6,54.04419174]
[1743081715130,0.00744472,2011.1,2011.0,0.99451]
[1743081715427,3.2078,2011.4,2010.7,11.1673]
[1743081715625,0.99465,2010.7,2010.6,52.34530174]
[1743081715826,3.488,2010.8,2010.6,52.34530174]
[1743081716033,2.39597,2010.9,2010.6,52.34530174]
[1743081716221,0.9946,2010.8,2010.7,1.3132]
[1743081716422,0.9946,2010.8,2010.6,52.34530174]
[1743081716423,1.4014,2010.9,2010.6,52.34530174]
[1743081716629,1.4142,2010.7,2010.6,52.34530174]
[1743081716831,2.40885,2010.7,2010.6,52.34530174]
[1743081717026,1.4142,2010.7,2010.6,52.34530174]
[1743081717226,3.21524472,2011.0,2010.6,52.34530174]
[1743081717523,0.705,2011.9,2010.6,52.34530174]
[1743081717524,3.2078,2011.3,2011.1,0.99442]
[1743081717721,0.9943,2011.5,2011.2,1.4266]
[1743081717927,2.40853,2011.4,2011.2,1.4266]
[1743081718127,1.4142,2011.4,2011.2,1.4266]
[1743081718324,2.40852,2011.4,2011.3,40.8]
[1743081718531,3.534,2011.6,2011.3,40.8]
[1743081718733,4.95564472,2011.6,2011.4,2.4209]
[1743081718935,1.42164472,2011.6,2011.4,1.4266]
[1743081719431,1.42164472,2011.6,2011.3,41.79432]
[1743081719432,0.99431,2011.4,2011.3,40.8]
[1743081719646,0.99429,2011.5,2011.3,40.8]
[1743081719928,1.3158,2011.4,2011.3,41.79436]
[1743081720130,3.532,2011.5,2011.4,2.40301]
[1743081720637,4.52628,2011.5,2011.3,41.79436]
[1743081720835,1.3158,2011.4,2011.3,40.8]
[1743081721036,1.3158,2011.4,2011.3,41.79436]
[1743081721627,1.3158,2011.4,2011.3,40.8]
[1743081721829,2.31011,2011.4,2011.3,40.8]
[1743081722036,5.51791,2011.4,2011.3,40.8]
[1743081722435,4.5236,2011.4,2011.3,41.79436]
[1743081722638,4.5236,2011.4,2011.1,1.4087]
[1743081722932,4.5236,2011.4,2010.7,3.8661]
[1743081722933,10.3536,2011.4,2010.7,3.8661]
[1743081723140,3.2078,2011.0,2010.7,4.86074]
[1743081723340,2.38926,2010.9,2010.7,4.86074]
[1743081723540,1.3947,2010.9,2010.7,3.8661]
[1743081723940,2.38929,2010.9,2010.7,0.6583]
[1743081724242,0.9946,2010.8,2010.7,0.6583]
[1743081724428,4.9757,2010.8,2010.5,0.00744472]
[1743081724634,3.2078,2010.7,2010.1,0.6943]
[1743081724831,3.2078,2010.3,2009.6,3.2078]
[1743081725034,4.9797,2010.2,2009.6,4.6112]
[1743081725243,3.584,2010.2,2009.6,5.69578]
[1743081725437,3.2078,2010.4,2010.3,0.99485]
[1743081725438,6.7908,2010.4,2010.3,0.99485]
[1743081725743,3.2078,2011.0,2010.7,0.99463]
[1743081725942,0.99463,2010.8,2010.3,2.0571]
[1743081726141,1.3927,2010.7,2010.6,0.99469]
[1743081726443,3.2078,2011.0,2010.7,0.99461]
[1743081726644,0.99455,2010.9,2010.8,1.3628]
[1743081726845,2.38725,2010.9,2010.6,40.8]
[1743081727151,4.9887,2010.9,2010.6,40.8]
[1743081727338,4.9887,2010.9,2010.8,0.9946]
[1743081727844,3.596,2010.9,2010.8,0.9946]
[1743081728139,3.2078,2011.0,2010.9,0.99455]
[1743081728846,0.00744472,2011.1,2011.0,0.99451]
[1743081729340,0.99451,2011.0,2010.9,0.7098]
[1743081729530,0.99479,2010.5,2010.4,0.99479]
[1743081729731,0.9949,2010.2,2010.1,0.00744472]
[1743081729945,5.91971,2010.4,2010.1,0.00744472]
[1743081730143,4.9249,2010.4,2010.1,40.80744472]
[1743081730443,0.9949,2010.2,2010.1,0.00744472]
[1743081730642,3.2078,2010.3,2010.1,1.00239472]
[1743081730837,1.3139,2010.2,2010.1,1.00239472]
[1743081731034,0.99479,2010.5,2010.3,0.9948]
[1743081731244,0.9948,2010.4,2010.3,0.9948]
[1743081731541,2.3087,2010.4,2010.2,0.99486]
[1743081732036,2.3087,2010.4,2010.1,0.00744472]
[1743081732037,1.3139,2010.4,2010.3,0.99485]
[1743081732239,2.30873,2010.4,2010.2,0.99487]
[1743081732740,1.3139,2010.4,2010.2,0.99487]
[1743081732941,1.3139,2010.4,2010.3,0.99485]
[1743081733138,3.2078,2010.5,2010.2,3.2078]
[1743081733447,3.2078,2010.5,2010.4,0.9948]
[1743081733938,0.99456,2010.9,2010.4,2.48689]
[1743081734134,4.6193,2011.0,2010.5,47.20759]
[1743081734338,1.4115,2011.0,2010.9,0.99455]
[1743081734551,2.40601,2011.0,2010.9,0.99455]
[1743081735045,0.99451,2011.0,2010.9,0.99455]
[1743081735245,1.36754472,2011.1,2010.6,2.48672]
[1743081735437,3.2078,2011.0,2010.5,44.7207]
[1743081735637,2.35469,2010.9,2010.8,0.9946]
[1743081735836,1.3601,2010.9,2010.8,0.9946]
[1743081736037,4.20232,2011.0,2010.9,0.99455]
[1743081736245,0.99455,2010.9,2010.5,44.7207]
[1743081736441,0.99458,2010.9,2010.8,0.99459]
[1743081736842,4.20235,2011.0,2010.9,0.99455]
[1743081737148,0.00744472,2011.1,2011.0,0.99451]
[1743081738739,3.2078,2011.3,2011.2,0.99441]
[1743081739447,0.99425,2011.6,2011.5,0.99426]
[1743081739646,0.99427,2011.5,2011.4,0.99427]
[1743081739843,0.99427,2011.5,2011.4,0.99431]
[1743081739844,0.99426,2011.5,2011.4,0.99431]
[1743081741238,0.9943,2011.5,2011.4,0.9943]
[1743081741451,0.99431,2011.4,2011.3,0.00744472]
[1743081741647,4.20211,2011.4,2011.3,0.00744472]
[1743081743545,3.2078,2011.4,2011.3,1.00180472]
[1743081743757,0.99423,2011.6,2011.3,0.00744472]
[1743081743950,3.2078,2011.7,2011.3,0.71614472]
[1743081743951,0.99426,2011.5,2011.3,0.71614472]
[1743081744154,0.99429,2011.5,2011.4,0.99431]
[1743081744452,0.99431,2011.4,2011.3,0.00744472]
[1743081744644,4.20211,2011.4,2011.3,0.00744472]
[1743081745450,0.99431,2011.4,2011.3,1.00180472]
[1743081745658,0.99431,2011.4,2011.3,0.00744472]
[1743081746250,4.20211,2011.4,2011.3,0.00744472]
[1743081747251,5.56861,2011.4,2011.3,0.00744472]
[1743081747454,5.56861,2011.4,2011.3,1.00180472]
[1743081747854,5.56861,2011.4,2011.3,0.00744472]
[1743081748356,5.56861,2011.4,2011.3,1.00180472]
[1743081748855,4.5743,2011.4,2011.3,1.00180472]
[1743081749068,3.607,2011.5,2011.4,0.99431]
[1743081749254,3.607,2011.5,2011.4,2.39721]
[1743081749457,0.00744472,2011.8,2011.7,0.99416]
[1743081749860,0.00744472,2011.8,2011.7,1.69866]
[1743081750162,1.00155472,2011.8,2011.7,1.69866]
[1743081750351,0.00744472,2011.8,2011.7,43.85386]
[1743081750557,1.00155472,2011.8,2011.7,43.85386]
[1743081750868,1.35014472,2011.8,2011.7,43.85386]
[1743081751058,2.34425472,2011.8,2011.7,43.85386]
[1743081751453,1.35014472,2011.8,2011.7,43.85386]
[1743081751659,0.00744472,2011.8,2011.7,43.85386]
[1743081752260,3.2078,2012.0,2011.9,0.99406]
[1743081753261,0.99393,2012.2,2012.1,0.99396]
[1743081753569,0.994,2012.1,2012.0,0.99399]
[1743081753867,0.99401,2012.0,2011.9,1.3637]
[1743081754067,1.4037,2012.0,2011.9,2.35776]
[1743081754258,0.00744472,2012.2,2012.1,0.99396]
[1743081754458,1.00135472,2012.2,2012.1,0.99396]
[1743081754657,0.00744472,2012.2,2012.1,0.99396]
[1743081755363,1.00135472,2012.2,2012.1,0.99396]
[1743081755663,0.00744472,2012.2,2012.1,0.99396]
[1743081755968,1.41114472,2012.2,2012.1,0.99396]
[1743081756469,2.40505472,2012.2,2012.1,0.99396]
[1743081756969,1.41114472,2012.2,2012.1,0.99396]
[1743081757179,2.40505472,2012.2,2012.1,0.99396]
[1743081758773,0.99399,2012.1,2012.0,0.99397]
[1743081758956,2.34479,2012.1,2012.0,0.99397]
[1743081759670,1.3508,2012.1,2012.0,0.99397]
[1743081760266,1.00136472,2012.2,2011.9,1.3637]
[1743081760267,1.00135472,2012.2,2012.1,0.99396]
[1743081760468,0.00744472,2012.2,2012.1,0.99396]
[1743081762865,1.00135472,2012.2,2012.1,0.99396]
[1743081763069,2.31875472,2012.2,2012.1,0.99396]
[1743081764675,1.32484472,2012.2,2012.1,0.99396]
[1743081765066,0.00744472,2012.2,2012.1,0.99396]
[1743081766669,1.00135472,2012.2,2012.1,0.99396]
[1743081766973,0.00744472,2012.2,2012.1,0.99396]
[1743081767970,1.36994472,2012.2,2012.1,0.99396]
[1743081768173,0.00744472,2012.2,2012.1,0.99396]
[1743081769375,0.00744472,2012.2,2012.1,4.20176]
[1743081769575,4.20154,2012.6,2012.5,0.99376]
[1743081769770,0.99383,2012.5,2012.4,0.99378]
[1743081769975,2.30783,2012.5,2012.4,0.99378]
[1743081771179,2.30783,2012.5,2012.2,2.06274472]
[1743081771180,0.99386,2012.3,2012.2,2.06274472]
[1743081771475,0.99386,2012.3,2012.2,3.05665472]
[1743081774068,0.99386,2012.3,2012.2,0.68054472]
[1743081774271,0.99386,2012.3,2012.2,1.67445472]
[1743081775677,0.99386,2012.3,2012.2,0.00744472]
[1743081776579,0.99386,2012.3,2012.2,1.00135472]
[1743081777481,2.31166,2012.3,2012.2,1.00135472]
[1743081778582,2.31166,2012.3,2012.2,0.00744472]
[1743081778878,2.31166,2012.3,2012.2,1.00135472]
[1743081779478,2.31166,2012.3,2012.2,1.66745472]
[1743081780076,2.31166,2012.3,2012.2,0.67354472]
[1743081780273,2.31166,2012.3,2012.2,0.00744472]
[1743081781491,5.51946,2012.3,2012.2,0.00744472]
[1743081781778,0.99416,2011.7,2011.6,2.0207]
[1743081781987,2.48534,2011.8,2011.4,0.7068]
[1743081782194,0.99426,2011.5,2011.4,3.06548]
[1743081782486,1.3499,2011.6,2011.5,0.99426]
[1743081782682,1.3499,2011.6,2011.5,2.35866]
[1743081782983,1.00160472,2011.8,2011.7,0.99416]
[1743081783284,2.35150472,2011.8,2011.7,0.99416]
[1743081783480,1.35734472,2011.8,2011.7,0.99416]
[1743081783679,0.00744472,2011.8,2011.7,1.65046]
[1743081785880,2.32495472,2011.8,2011.7,0.6563]
[1743081786179,0.99431,2011.4,2011.3,0.00744472]
[1743081786780,2.35121,2011.4,2011.3,0.00744472]
[1743081789081,2.35121,2011.4,2011.3,1.00180472]
[1743081789382,2.35121,2011.4,2011.3,0.00744472]
[1743081792480,2.35121,2011.4,2010.2,5.69506]
[1743081792481,9.8495,2011.4,2010.2,5.69506]
[1743081792688,3.2078,2010.6,2010.3,40.8]
[1743081792993,2.35189,2010.5,2010.4,0.9948]
[1743081793184,0.9948,2010.4,2010.3,42.0957]
[1743081793384,2.3519,2010.4,2010.3,40.8]
[1743081793588,2.3519,2010.4,2010.1,2.36261]
[1743081793589,0.9949,2010.3,2010.2,0.9949]
[1743081793789,0.9949,2010.3,2010.2,2.2906]
[1743081793790,1.3571,2010.3,2010.2,2.2906]
[1743081793994,0.99479,2010.5,2010.4,0.9948]
[1743081794194,2.35185,2010.5,2010.4,0.9948]
[1743081794382,3.21524472,2010.6,2010.2,44.58294]
[1743081794587,3.21524472,2010.6,2010.5,0.99475]
[1743081794788,4.20994472,2010.6,2010.4,0.99477]
[1743081794993,0.9948,2010.4,2010.3,0.99484]
[1743081795294,0.99485,2010.3,2010.2,40.8]
[1743081795495,2.39455,2010.3,2010.2,40.8]
[1743081795688,2.39455,2010.3,2010.2,42.1285]
[1743081795887,2.39455,2010.3,2010.2,43.1234]
[1743081796198,1.3997,2010.3,2010.2,43.1234]
[1743081796497,2.39455,2010.3,2010.2,42.1285]
[1743081796787,2.39455,2010.3,2010.2,43.1234]
[1743081797195,2.39455,2010.3,2010.2,42.1285]
[1743081797997,1.3997,2010.3,2010.2,43.1234]
[1743081798192,0.99478,2010.5,2010.4,0.9948]
[1743081798398,2.39448,2010.5,2010.4,0.9948]
[1743081798991,1.3997,2010.5,2010.2,42.1285]
[1743081799201,0.99485,2010.3,2010.2,43.12337]
[1743081799494,0.99483,2010.4,2010.3,0.99482]
[1743081799701,0.99485,2010.3,2010.2,43.12336]
[1743081799890,2.41125,2010.3,2010.2,42.1285]
[1743081800097,9.13505,2010.3,2010.2,40.8]
[1743081800393,0.9949,2010.2,2010.1,0.00744472]
[1743081800596,2.4113,2010.2,2010.1,0.00744472]
[1743081800799,2.4113,2010.2,2010.1,40.80744472]
[1743081801393,2.4113,2010.2,2010.1,0.00744472]
[1743081801898,4.9113,2010.2,2010.1,0.00744472]
[1743081803702,2.4113,2010.2,2010.1,0.00744472]
[1743081804498,10.7413,2010.2,2010.1,0.00744472]
[1743081804808,0.99505,2009.9,2009.8,40.8]
[1743081805002,4.51405,2009.9,2009.8,40.8]
[1743081805505,5.86865,2009.9,2009.8,40.8]
[1743081805702,14.19865,2009.9,2009.8,40.8]
[1743081805892,0.99515,2009.7,2009.6,0.00744472]
[1743081806098,4.20295,2009.7,2009.6,0.00744472]
[1743081806298,3.2078,2009.0,2007.9,0.08662394]
[1743081806492,3.2078,2008.0,2007.7,2.0554]
[1743081806696,3.2078,2008.3,2007.7,5.2632]
[1743081806899,3.2078,2008.3,2007.8,2.49022]
[1743081807204,3.2078,2008.3,2008.2,0.99589]
[1743081807405,0.99592,2008.2,2008.0,0.99597]
[1743081807703,0.99598,2008.1,2007.9,2.36233]
[1743081808004,3.21526361,2008.3,2007.9,1.3663]
[1743081808192,3.21526361,2008.3,2007.7,0.6891]
[1743081808397,0.99596,2008.1,2008.0,0.99596]
[1743081808592,0.99594,2008.2,2008.1,0.99593]
[1743081808804,4.21114361,2008.3,2008.2,0.99589]
[1743081809202,3.21526361,2008.3,2008.2,0.99589]
[1743081809506,0.99575,2008.5,2008.2,3.2078]
[1743081809807,0.99579,2008.4,2008.3,2.7945]
[1743081810005,0.99579,2008.4,2008.3,43.5945]
[1743081810201,0.99579,2008.4,2008.3,44.59034]
[1743081810499,0.99579,2008.4,2008.3,43.5945]
[1743081810693,0.00746361,2008.6,2008.3,43.5945]
[1743081810898,1.00317361,2008.6,2008.5,0.99574]
[1743081811198,1.00317361,2008.6,2008.4,2.34036]
[1743081811199,1.00318361,2008.6,2008.4,2.34036]
[1743081811400,0.00746361,2008.6,2008.5,0.99574]
[1743081813704,6.18392,2009.0,2008.6,2.48923]
[1743081814006,1.3814,2009.0,2008.9,0.99554]
[1743081814195,0.9955,2009.0,2008.9,0.99554]
[1743081814604,1.3437,2009.1,2008.7,3.88981]
[1743081814605,0.99546,2009.1,2009.0,0.99545]
[1743081814905,11.38438361,2009.2,2009.1,0.99545]
[1743081815108,5.55438361,2009.2,2009.1,0.99545]
[1743081815302,4.21068361,2009.2,2009.1,0.99545]
[1743081815607,0.00746361,2009.2,2009.1,4.20325]
[1743081815805,0.99527,2009.5,2009.4,0.99527]
[1743081816009,11.96393,2009.6,2009.4,0.99527]
[1743081816304,11.96393,2009.6,2009.5,1.4007]
[1743081816505,10.6202,2009.6,2009.5,1.4007]
[1743081817008,8.2078,2009.6,2009.5,2.39595]
[1743081817218,5.83,2009.6,2009.5,2.39595]
[1743081817410,1.39006361,2009.8,2009.7,0.99515]
[1743081817909,0.00746361,2009.8,2009.7,0.99515]
[1743081819299,0.00746361,2009.8,2009.7,2.31045]
[1743081823809,0.00746361,2009.8,2009.7,5.51825]
[1743081824113,0.99498,2010.1,2009.7,4.5231]
[1743081824410,0.9951,2009.8,2009.7,4.5231]
[1743081824805,0.9952,2009.6,2009.5,0.669]
[1743081825411,1.3107,2009.7,2009.5,0.99523]
[1743081825606,1.3107,2009.7,2009.4,1.353]
[1743081825915,2.30588,2009.7,2009.6,0.9952]
[1743081826108,2.30585,2009.7,2009.6,0.9952]
[1743081826510,0.99522,2009.6,2009.5,0.99521]
[1743081826715,2.41712,2009.6,2009.5,0.99521]
[1743081826913,1.4219,2009.6,2009.5,0.99521]
[1743081827317,1.4219,2009.6,2009.5,2.30921]
[1743081827515,2.4171,2009.6,2009.5,2.30921]
[1743081827915,1.4219,2009.6,2009.5,2.30921]
[1743081828112,2.4171,2009.6,2009.5,2.30921]
[1743081828419,2.4171,2009.6,2009.5,1.314]
[1743081828712,0.99528,2009.5,2009.4,0.99527]
[1743081828908,0.9953,2009.4,2009.3,2.31677361]
[1743081829105,0.9953,2009.4,2009.3,42.12146361]
[1743081829304,0.9953,2009.4,2009.3,43.11681361]
[1743081829524,2.41717,2009.5,2009.4,0.9953]
[1743081829817,1.4219,2009.5,2009.4,2.3861]
[1743081830114,3.745,2009.6,2009.5,0.99525]
[1743081830318,3.21526361,2009.8,2009.7,0.99515]
[1743081830518,4.21040361,2009.8,2009.7,0.99515]
[1743081831015,4.21040361,2009.8,2009.7,41.79515]
[1743081831319,4.21040361,2009.8,2009.7,40.8]
[1743081831917,0.99519,2009.7,2009.6,0.99517]
[1743081832112,2.41769,2009.7,2009.6,0.99517]
[1743081832522,2.41769,2009.7,2009.6,41.79517]
[1743081832824,2.41769,2009.7,2009.6,40.8]
[1743081833021,2.41769,2009.7,2009.6,41.7952]
[1743081833521,1.4225,2009.7,2009.6,41.7952]
[1743081833815,2.41765,2009.7,2009.6,41.7952]
[1743081834520,1.4225,2009.7,2009.6,41.7952]
[1743081835123,2.41765,2009.7,2009.6,41.7952]
[1743081835323,1.4225,2009.7,2009.6,41.7952]
[1743081835829,2.41765,2009.7,2009.6,41.7952]
[1743081836819,2.41765,2009.7,2009.6,0.9952]
[1743081837326,1.4225,2009.7,2009.6,0.9952]
[1743081837517,1.4225,2009.7,2009.6,1.6595]
[1743081837716,0.9952,2009.6,2009.5,40.8]
[1743081837917,0.9952,2009.6,2009.2,3.2078]
[1743081837918,9.544,2009.6,2008.7,0.6464]
[1743081838122,0.99564,2008.7,2008.6,0.99568]
[1743081838323,0.99566,2008.7,2008.4,42.8219]
[1743081838623,9.41458,2009.0,2008.4,42.8219]
[1743081838624,0.99574,2008.5,2008.4,42.8219]
[1743081838819,1.3052,2008.6,2008.4,43.15336]
[1743081838820,2.30094,2008.6,2008.4,43.15336]
[1743081839021,1.3052,2008.6,2008.5,0.99574]
[1743081839220,1.3052,2008.6,2008.5,2.41044]
[1743081839733,2.30089,2008.6,2008.5,1.4147]
[1743081840220,2.30089,2008.6,2008.5,2.41044]
[1743081840524,2.30089,2008.6,2008.5,1.4147]
[1743081840721,0.99574,2008.5,2008.4,40.8]
[1743081840925,2.30094,2008.5,2008.4,40.8]
[1743081841314,0.99579,2008.4,2008.3,2.0611]
[1743081841516,0.99579,2008.4,2008.2,3.21526361]
[1743081841517,0.99584,2008.3,2008.2,3.21526361]
[1743081842834,0.99584,2008.3,2008.2,0.00746361]
[1743081843334,0.99599,2008.0,2007.9,2.36544]
[1743081843630,5.0596,2008.3,2007.9,1.3694]
[1743081843933,7.54923,2008.3,2007.9,1.3694]
[1743081844125,0.99599,2008.0,2007.9,2.36543]
[1743081844319,0.99599,2008.0,2007.9,2.36541]
[1743081844523,5.0596,2008.3,2007.9,2.36541]
[1743081844524,0.99589,2008.2,2008.1,0.99593]
[1743081844718,1.4129,2008.2,2008.1,0.99593]
[1743081844931,9.539,2008.5,2008.3,0.99584]
[1743081845229,0.99585,2008.3,2008.2,0.99585]
[1743081845627,1.4129,2008.4,2008.3,0.99584]
[1743081845828,0.99573,2008.6,2008.5,0.99574]
[1743081846527,1.4129,2008.6,2008.5,0.99574]
[1743081846728,0.99571,2008.6,2008.3,3.2078]
[1743081846925,0.99574,2008.5,2008.4,3.08157]
[1743081847429,2.40863,2008.6,2008.5,0.99574]
[1743081847626,1.4129,2008.6,2008.5,2.34174]
[1743081847824,3.21526361,2008.7,2008.6,0.99569]
[1743081848024,4.21090361,2008.7,2008.6,0.99569]